Workbook

Sheet Spreadsheet12.1
F10: Market Premium | M10: Price CDS
B11: Inputs | F11: Running | G11: Up-front | H11: Hazard Rate | I11: Risky Annuity | J11: Default Leg | K11: MTM | M11: Premium | N11: MTM
B12: Interest Rate | C12: 0.05 | E12: 1Y CDS | F12: 300 | G12: 0 | H12: 0.04944286058 | I12: =SUM($G$32:$G$51) -> 0.9401032802 | J12: =SUM($H$32:$H$51) -> 0.02820309841 | K12: =J12-I12*F12/10000-G12 -> -3.469446952e-18 | M12: 500 | N12: =J12-M12*I12/10000 -> -0.0188020656
B13: Recovery | C13: 0.4 | E13: 2Y CDS | F13: 350 | G13: 0 | H13: 0.06673790361 | I13: =SUM($G$32:$G$71) -> 1.782190418 | J13: =SUM($H$32:$H$71) -> 0.06237666463 | K13: =J13-I13*F13/10000-G13 -> -1.665334537e-16 | M13: 500 | N13: =J13-M13*I13/10000 -> -0.02673285627
E14: 3Y CDS | F14: 400 | G14: 0 | H14: 0.08536330689 | I14: =SUM($G$32:$G$91) -> 2.52295886 | J14: =SUM($H$32:$H$91) -> 0.1009183544 | K14: =J14-I14*F14/10000-G14 -> -1.526556659e-16 | M14: 500 | N14: =J14-M14*I14/10000 -> -0.0252295886
E15: 4Y CDS | F15: 450 | G15: 0 | H15: 0.1059520431 | I15: =SUM($G$32:$G$111) -> 3.161822488 | J15: =SUM($H$32:$H$111) -> 0.142282012 | K15: =J15-I15*F15/10000-G15 -> -5.551115123e-16 | M15: 500 | N15: =J15-M15*I15/10000 -> -0.01580911244
E16: 5Y CDS | F16: 500 | G16: 0 | H16: 0.1294527231 | I16: =SUM($G$32:$G$131) -> 3.70063022 | J16: =SUM($H$32:$H$131) -> 0.185031511 | K16: =J16-I16*F16/10000-G16 -> 0 | M16: 500 | N16: =J16-M16*I16/10000 -> 0
F18: Fair Prem | G18: Def prob | H18: PD (approx) | I18: PD
E19: 1Y | F19: =J12/I12*10000 -> 300 | G19: =1-D51 -> 0.04824046043 | H19: =1-EXP(-F12/10000/(1-Recovery)) -> 0.0487705755 | I19: =G19 -> 0.04824046043
E20: 2Y | F20: =J13/I13*10000 -> 350 | G20: =1-D71 -> 0.1096857282 | H20: =EXP(-F12/10000/(1-Recovery))-EXP(-2*F13/10000/(1-Recovery)) -> 0.06134765351 | I20: =G20-G19 -> 0.06144526776
E21: 3Y | F21: =J14/I14*10000 -> 400 | G21: =1-D91 -> 0.1825324499 | H21: =EXP(-2*F13/10000/(1-Recovery))-EXP(-3*F14/10000/(1-Recovery)) -> 0.07115101791 | I21: =G21-G20 -> 0.07284672172
E22: 4Y | F22: =J15/I15*10000 -> 450 | G22: =1-D111 -> 0.2647142752 | H22: =EXP(-3*F14/10000/(1-Recovery))-EXP(-4*F15/10000/(1-Recovery)) -> 0.0779125324 | I22: =G22-G21 -> 0.08218182534
E23: 5Y | F23: =J16/I16*10000 -> 500 | G23: =1-D131 -> 0.3539955181 | H23: =EXP(-4*F15/10000/(1-Recovery))-EXP(-5*F16/10000/(1-Recovery)) -> 0.08157759048 | I23: =G23-G22 -> 0.08928124283
C30: Disc Factor | D30: Cumulative Survival Probability | E30: Cumulative Default Probability | F30: Marginal Def Probability | G30: Premiums | H30: Defaults | I30: Accr
B31: 0 | C31: =EXP(-IRate*B31) -> 1 | D31: 1 | E31: =1-D31 -> 0
B32: =B31+0.05 -> 0.05 | C32: 0.9975031224 | D32: =D31*EXP(-0.05*HazardRate1) -> 0.9975309102 | E32: 0.0024690898 | F32: =D31-D32 -> 0.0024690898 | H32: =F32*C32*(1-Recovery) -> 0.001477754871 | I32: 0.05 | J32: =I32*F32 -> 0.00012345449
B33: 0.1 | C33: 0.9950124792 | D33: 0.9950679168 | E33: 0.004932083196 | F33: 0.002462993396 | H33: 0.001470425499 | I33: =I32+0.05 -> 0.1 | J33: =I33*F33 -> 0.0002462993396
B34: 0.15 | C34: 0.9925280548 | D34: 0.9926110048 | E34: 0.007388995239 | F34: 0.002456912044 | H34: 0.001463132479 | I34: =I33+0.05 -> 0.15 | J34: =I34*F34 -> 0.0003685368066
B35: 0.2 | C35: 0.9900498337 | D35: 0.9901601591 | E35: 0.009839840947 | F35: 0.002450845707 | H35: 0.001455875631 | I35: 0.2 | J35: =I35*F35 -> 0.0004901691414
B36: 0.25 | C36: 0.9875778005 | D36: 0.9877153647 | E36: 0.0122846353 | F36: 0.002444794349 | G36: =C36*D36*0.25 -> 0.2438614418 | H36: 0.001448654776 | I36: 0 | J36: =I36*F36 -> 0
B37: 0.3 | C37: 0.9851119396 | D37: 0.9852766068 | E37: 0.01472339323 | F37: 0.002438757932 | H37: 0.001441469734 | I37: 0.05 | J37: =I37*F37 -> 0.0001219378966
B38: 0.35 | C38: 0.9826522357 | D38: 0.9828438704 | E38: 0.01715612965 | F38: 0.00243273642 | H38: 0.001434320329 | I38: 0.1 | J38: 0.000243273642
B39: 0.4 | C39: 0.9801986733 | D39: 0.9804171406 | E39: 0.01958285942 | F39: 0.002426729775 | H39: 0.001427206384 | I39: 0.15 | J39: 0.0003640094663
B40: 0.45 | C40: 0.9777512372 | D40: 0.9779964026 | E40: 0.02200359738 | F40: 0.002420737962 | H40: 0.001420127722 | I40: 0.2 | J40: 0.0004841475923
B41: 0.5 | C41: 0.975309912 | D41: 0.9755816417 | E41: 0.02441835833 | F41: 0.002414760942 | G41: =C41*D41*0.25 -> 0.2378736113 | H41: 0.001413084169 | I41: 0 | J41: 0
B42: 0.55 | C42: 0.9728746826 | D42: 0.973172843 | E42: 0.02682715701 | F42: 0.002408798681 | H42: 0.001406075551 | I42: 0.05 | J42: 0.000120439934
B43: 0.6 | C43: 0.9704455335 | D43: 0.9707699919 | E43: 0.02923000815 | F43: 0.00240285114 | H43: 0.001399101694 | I43: 0.1 | J43: 0.000240285114
B44: 0.65 | C44: 0.9680224498 | D44: 0.9683730736 | E44: 0.03162692643 | F44: 0.002396918285 | H44: 0.001392162426 | I44: 0.15 | J44: 0.0003595377428
B45: 0.7 | C45: 0.9656054163 | D45: 0.9659820735 | E45: 0.03401792651 | F45: 0.002391000079 | H45: 0.001385257576 | I45: 0.2 | J45: 0.0004782000157
B46: 0.75 | C46: 0.9631944177 | D46: 0.963596977 | E46: 0.036403023 | F46: 0.002385096485 | G46: =C46*D46*0.25 -> 0.2320328073 | H46: 0.001378386972 | I46: 0 | J46: 0
B47: 0.8 | C47: 0.9607894392 | D47: 0.9612177695 | E47: 0.03878223046 | F47: 0.002379207467 | H47: 0.001371550445 | I47: 0.05 | J47: 0.0001189603734
B48: 0.85 | C48: 0.9583904655 | D48: 0.9588444365 | E48: 0.04115556345 | F48: 0.00237333299 | H48: 0.001364747826 | I48: 0.1 | J48: 0.000237333299
B49: 0.9 | C49: 0.9559974818 | D49: 0.9564769635 | E49: 0.04352303647 | F49: 0.002367473018 | H49: 0.001357978946 | I49: 0.15 | J49: 0.0003551209527
B50: 0.95 | C50: 0.9536104731 | D50: 0.954115336 | E50: 0.04588466399 | F50: 0.002361627515 | H50: 0.001351243639 | I50: 0.2 | J50: 0.0004723255029
B51: 1 | C51: 0.9512294245 | D51: 0.9517595396 | E51: 0.04824046043 | F51: 0.002355796444 | G51: =C51*D51*0.25 -> 0.2263354198 | H51: 0.001344541738 | I51: 0 | J51: 0
B52: 1.05 | C52: 0.9488543211 | D52: =D51*EXP(-0.05*HazardRate2) -> 0.9485889107 | E52: 0.05141108928 | F52: 0.003170628851 | H52: 0.001805078931 | I52: 0.05 | J52: 0.0001585314425
B53: 1.1 | C53: 0.946485148 | D53: 0.9454288443 | E53: 0.05457115571 | F53: 0.003160066427 | H53: 0.001794573564 | I53: 0.1 | J53: 0.0003160066427
B54: 1.15 | C54: 0.9441218904 | D54: 0.9422793051 | E54: 0.0577206949 | F54: 0.003149539191 | H54: 0.001784129337 | I54: 0.15 | J54: 0.0004724308786
B55: 1.2 | C55: 0.9417645336 | D55: 0.9391402581 | E55: 0.06085974192 | F55: 0.003139047024 | H55: 0.001773745894 | I55: 0.2 | J55: 0.0006278094048
B56: 1.25 | C56: 0.9394130628 | D56: 0.9360116683 | E56: 0.06398833173 | F56: 0.00312858981 | G56: =C56*D56*0.25 -> 0.219825397 | H56: 0.001763422881 | I56: 0 | J56: 0
B57: 1.3 | C57: 0.9370674634 | D57: 0.9328935008 | E57: 0.06710649917 | F57: 0.003118167433 | H57: 0.001753159948 | I57: 0.05 | J57: 0.0001559083716
B58: 1.35 | C58: 0.9347277206 | D58: 0.9297857211 | E58: 0.07021427894 | F58: 0.003107779776 | H58: 0.001742956743 | I58: 0.1 | J58: 0.0003107779776
B59: 1.4 | C59: 0.9323938199 | D59: 0.9266882943 | E59: 0.07331170566 | F59: 0.003097426723 | H59: 0.001732812921 | I59: 0.15 | J59: 0.0004646140085
B60: 1.45 | C60: 0.9300657467 | D60: 0.9236011862 | E60: 0.07639881382 | F60: 0.003087108161 | H60: 0.001722728134 | I60: 0.2 | J60: 0.0006174216321
B61: 1.5 | C61: 0.9277434863 | D61: 0.9205243622 | E61: 0.0794756378 | F61: 0.003076823972 | G61: =C61*D61*0.25 -> 0.2135026203 | H61: 0.001712702039 | I61: 0 | J61: 0
B62: 1.55 | C62: 0.9254270244 | D62: 0.9174577882 | E62: 0.08254221184 | F62: 0.003066574044 | H62: 0.001702734296 | I62: 0.05 | J62: 0.0001533287022
B63: 1.6 | C63: =EXP(-IRate*B63) -> 0.9231163464 | D63: 0.9144014299 | E63: 0.0855985701 | F63: 0.003056358262 | H63: 0.001692824563 | I63: 0.1 | J63: 0.0003056358262
B64: 1.65 | C64: 0.9208114379 | D64: 0.9113552534 | E64: 0.08864474662 | F64: =D63-D64 -> 0.003046176512 | H64: =F64*C64*(1-Recovery) -> 0.001682972504 | I64: 0.15 | J64: 0.0004569264768
B65: 1.7 | C65: 0.9185122844 | D65: 0.9083192247 | E65: 0.0916807753 | F65: 0.003036028681 | H65: 0.001673177784 | I65: 0.2 | J65: 0.0006072057362
B66: 1.75 | C66: 0.9162188717 | D66: 0.90529331 | E66: 0.09470668995 | F66: 0.003025914656 | G66: =C66*D66*0.25 -> 0.2073617038 | H66: 0.001663440067 | I66: 0 | J66: 0
B67: 1.8 | C67: 0.9139311853 | D67: 0.9022774757 | E67: 0.09772252428 | F67: 0.003015834323 | H67: 0.001653759023 | I67: 0.05 | J67: 0.0001507917162
B68: 1.85 | C68: 0.911649211 | D68: 0.8992716882 | E68: 0.1007283118 | F68: 0.003005787572 | H68: 0.001644134321 | I68: 0.1 | J68: 0.0003005787572
B69: 1.9 | C69: 0.9093729345 | D69: 0.8962759139 | E69: 0.1037240861 | F69: 0.00299577429 | H69: 0.001634565634 | I69: 0.15 | J69: 0.0004493661435
B70: 1.95 | C70: 0.9071023416 | D70: 0.8932901195 | E70: 0.1067098805 | F70: 0.002985794366 | H70: 0.001625052636 | I70: 0.2 | J70: 0.0005971588731
B71: 2 | C71: 0.904837418 | D71: 0.8903142718 | E71: 0.1096857282 | F71: 0.002975847687 | G71: =C71*D71*0.25 -> 0.2013974167 | H71: 0.001615595003 | I71: 0 | J71: 0
B72: 2.05 | C72: 0.9025781498 | D72: =D71*EXP(-0.05*HazardRate3) -> 0.8865223613 | E72: 0.1134776387 | F72: 0.003791910513 | H72: 0.002053497345 | I72: 0.05 | J72: 0.0001895955257
B73: 2.1 | C73: 0.9003245226 | D73: 0.8827466008 | E73: 0.1172533992 | F73: 0.003775760502 | H73: 0.002039645863 | I73: 0.1 | J73: 0.0003775760502
B74: 2.15 | C74: 0.8980765225 | D74: 0.8789869215 | E74: 0.1210130785 | F74: 0.003759679275 | H74: 0.002025887813 | I74: 0.15 | J74: 0.0005639518913
B75: 2.2 | C75: 0.8958341353 | D75: 0.875243255 | E75: 0.124756745 | F75: 0.003743666539 | H75: 0.002012222566 | I75: 0.2 | J75: 0.0007487333079
B76: 2.25 | C76: 0.8935973471 | D76: 0.871515533 | E76: 0.128484467 | F76: 0.003727722003 | G76: =C76*D76*0.25 -> 0.1946959921 | H76: 0.001998649495 | I76: 0 | J76: 0
B77: 2.3 | C77: 0.8913661439 | D77: 0.8678036876 | E77: 0.1321963124 | F77: 0.003711845375 | H77: 0.001985167979 | I77: 0.05 | J77: 0.0001855922688
B78: 2.35 | C78: 0.8891405117 | D78: 0.8641076512 | E78: 0.1358923488 | F78: 0.003696036367 | H78: 0.0019717774 | I78: 0.1 | J78: 0.0003696036367
B79: 2.4 | C79: 0.8869204367 | D79: 0.8604273565 | E79: 0.1395726435 | F79: 0.003680294691 | H79: 0.001958477145 | I79: 0.15 | J79: 0.0005520442036
B80: 2.45 | C80: 0.8847059049 | D80: 0.8567627365 | E80: 0.1432372635 | F80: 0.003664620059 | H80: 0.001945266603 | I80: 0.2 | J80: 0.0007329240118
B81: 2.5 | C81: 0.8824969026 | D81: 0.8531137243 | E81: 0.1468862757 | F81: 0.003649012187 | G81: =C81*D81*0.25 -> 0.1882175548 | H81: 0.001932145171 | I81: 0 | J81: 0
B82: 2.55 | C82: 0.8802934158 | D82: 0.8494802535 | E82: 0.1505197465 | F82: 0.00363347079 | H82: 0.001919112248 | I82: 0.05 | J82: 0.0001816735395
B83: 2.6 | C83: 0.8780954309 | D83: 0.8458622579 | E83: 0.1541377421 | F83: 0.003617995585 | H83: 0.001906167235 | I83: 0.1 | J83: 0.0003617995585
B84: 2.65 | C84: 0.8759029341 | D84: 0.8422596716 | E84: 0.1577403284 | F84: 0.003602586289 | H84: 0.001893309541 | I84: 0.15 | J84: 0.0005403879434
B85: 2.7 | C85: 0.8737159117 | D85: 0.838672429 | E85: 0.161327571 | F85: 0.003587242623 | H85: 0.001880538575 | I85: 0.2 | J85: 0.0007174485247
B86: 2.75 | C86: 0.87153435 | D86: 0.8351004647 | E86: 0.1648995353 | F86: 0.003571964307 | G86: =C86*D86*0.25 -> 0.1819546852 | H86: 0.001867853754 | I86: 0 | J86: 0
B87: 2.8 | C87: 0.8693582354 | D87: 0.8315437136 | E87: 0.1684562864 | F87: 0.003556751062 | H87: 0.001855254496 | I87: 0.05 | J87: 0.0001778375531
B88: 2.85 | C88: 0.8671875543 | D88: 0.828002111 | E88: 0.171997889 | F88: 0.003541602612 | H88: 0.001842740224 | I88: 0.1 | J88: 0.0003541602612
B89: 2.9 | C89: 0.8650222931 | D89: 0.8244755923 | E89: 0.1755244077 | F89: 0.003526518679 | H89: 0.001830310365 | I89: 0.15 | J89: 0.0005289778019
B90: 2.95 | C90: 0.8628624383 | D90: 0.8209640934 | E90: 0.1790359066 | F90: 0.003511498991 | H90: 0.001817964349 | I90: 0.2 | J90: 0.0007022997981
B91: 3 | C91: 0.8607079764 | D91: 0.8174675501 | E91: 0.1825324499 | F91: 0.003496543272 | G91: =C91*D91*0.25 -> 0.1759002102 | H91: 0.00180570161 | I91: 0 | J91: 0
B92: 3.05 | C92: 0.858558894 | D92: =D91*EXP(-0.05*HazardRate4) -> 0.8131483829 | E92: 0.1868516171 | F92: 0.004319167138 | H92: 0.002224955616 | I92: 0.05 | J92: 0.0002159583569
B93: 3.1 | C93: 0.8564151775 | D93: 0.8088520365 | E93: 0.1911479635 | F93: 0.00429634641 | H93: 0.002207673764 | I93: 0.1 | J93: 0.000429634641
B94: 3.15 | C94: 0.8542768136 | D94: 0.8045783903 | E94: 0.1954216097 | F94: 0.004273646257 | H94: 0.002190526144 | I94: 0.15 | J94: 0.0006410469386
B95: 3.2 | C95: =EXP(-IRate*B95) -> 0.852143789 | D95: 0.8003273242 | E95: =1-D95 -> 0.1996726758 | F95: 0.004251066043 | H95: 0.002173511715 | I95: 0.2 | J95: 0.0008502132085
B96: =B95+0.05 -> 3.25 | C96: 0.8500160902 | D96: 0.7960987191 | E96: 0.2039012809 | F96: =D95-D96 -> 0.004228605133 | G96: =C96*D96*0.25 -> 0.1691741802 | H96: =F96*C96*(1-Recovery) -> 0.002156629441 | I96: 0 | J96: 0
B97: 3.3 | C97: 0.8478937041 | D97: 0.7918924562 | E97: 0.2081075438 | F97: 0.004206262898 | H97: 0.002139878297 | I97: 0.05 | J97: 0.0002103131449
B98: 3.35 | C98: 0.8457766173 | D98: 0.7877084175 | E98: 0.2122915825 | F98: 0.00418403871 | H98: 0.002123257264 | I98: =I97+0.05 -> 0.1 | J98: 0.000418403871
B99: 3.4 | C99: 0.8436648166 | D99: 0.7835464856 | E99: 0.2164535144 | F99: 0.004161931946 | H99: 0.002106765331 | I99: 0.15 | J99: 0.0006242897918
B100: 3.45 | C100: 0.8415582888 | D100: 0.7794065436 | E100: 0.2205934564 | F100: 0.004139941984 | H100: 0.002090401495 | I100: 0.2 | J100: 0.0008279883969
B101: 3.5 | C101: 0.8394570208 | D101: 0.7752884754 | E101: 0.2247115246 | F101: 0.004118068209 | G101: =C101*D101*0.25 -> 0.1627053384 | H101: 0.002074164762 | I101: 0 | J101: =I101*F101 -> 0
B102: 3.55 | C102: 0.8373609993 | D102: 0.7711921654 | E102: 0.2288078346 | F102: 0.004096310006 | H102: 0.002058054144 | I102: 0.05 | J102: 0.0002048155003
B103: 3.6 | C103: 0.8352702114 | D103: 0.7671174986 | E103: 0.2328825014 | F103: 0.004074666765 | H103: 0.002042068662 | I103: 0.1 | J103: 0.0004074666765
B104: 3.65 | C104: 0.8331846439 | D104: 0.7630643607 | E104: 0.2369356393 | F104: 0.004053137877 | H104: 0.002026207344 | I104: 0.15 | J104: 0.0006079706816
B105: 3.7 | C105: 0.8311042839 | D105: 0.759032638 | E105: 0.240967362 | F105: 0.00403172274 | H105: 0.002010469224 | I105: 0.2 | J105: 0.000806344548
B106: 3.75 | C106: 0.8290291182 | D106: 0.7550222172 | E106: 0.2449777828 | F106: 0.004010420751 | G106: =C106*D106*0.25 -> 0.1564838507 | H106: 0.001994853347 | I106: 0 | J106: 0
B107: 3.8 | C107: 0.8269591339 | D107: 0.7510329859 | E107: 0.2489670141 | F107: 0.003989231314 | H107: 0.001979358764 | I107: 0.05 | J107: 0.0001994615657
B108: 3.85 | C108: 0.8248943182 | D108: 0.7470648321 | E108: 0.2529351679 | F108: 0.003968153833 | H108: 0.00196398453 | I108: 0.1 | J108: 0.0003968153833
B109: 3.9 | C109: 0.8228346581 | D109: 0.7431176444 | E109: 0.2568823556 | F109: 0.003947187717 | H109: 0.001948729713 | I109: 0.15 | J109: 0.0005920781575
B110: 3.95 | C110: 0.8207801406 | D110: 0.739191312 | E110: 0.260808688 | F110: 0.003926332377 | H110: 0.001933593384 | I110: 0.2 | J110: 0.0007852664754
B111: 4 | C111: 0.8187307531 | D111: 0.7352857248 | E111: 0.2647142752 | F111: 0.003905587229 | G111: =C111*D111*0.25 -> 0.1505002588 | H111: 0.001918574624 | I111: 0 | J111: 0
B112: 4.05 | C112: 0.8166864826 | D112: =D111*EXP(-0.05*HazardRate5) -> 0.730541857 | E112: 0.269458143 | F112: 0.00474386774 | H112: 0.002324551595 | I112: 0.05 | J112: 0.000237193387
B113: 4.1 | C113: 0.8146473164 | D113: 0.7258285954 | E113: 0.2741714046 | F113: 0.004713261568 | H113: 0.002303787533 | I113: 0.1 | J113: 0.0004713261568
B114: 4.15 | C114: 0.8126132418 | D114: 0.7211457426 | E114: 0.2788542574 | F114: 0.004682852859 | H114: 0.002283208946 | I114: 0.15 | J114: 0.0007024279289
B115: 4.2 | C115: 0.810584246 | D115: 0.7164931022 | E115: 0.2835068978 | F115: 0.00465264034 | H115: 0.002262814177 | I115: 0.2 | J115: 0.0009305280679
B116: 4.25 | C116: 0.8085603163 | D116: 0.7118704795 | E116: 0.2881295205 | F116: 0.004622622743 | G116: =C116*D116*0.25 -> 0.143897555 | H116: 0.002242601584 | I116: 0 | J116: 0
B117: 4.3 | C117: 0.8065414402 | D117: 0.7072776807 | E117: 0.2927223193 | F117: 0.004592798811 | H117: 0.002222569541 | I117: 0.05 | J117: 0.0002296399406
B118: 4.35 | C118: 0.8045276049 | D118: 0.7027145134 | E118: 0.2972854866 | F118: 0.004563167296 | H118: 0.002202716433 | I118: 0.1 | J118: 0.0004563167296
B119: 4.4 | C119: 0.802518798 | D119: 0.6981807864 | E119: 0.3018192136 | F119: 0.004533726956 | H119: 0.002183040664 | I119: 0.15 | J119: 0.0006800590434
B120: 4.45 | C120: 0.8005150068 | D120: 0.6936763099 | E120: 0.3063236901 | F120: 0.004504476556 | H120: 0.002163540649 | I120: 0.2 | J120: 0.0009008953113
B121: 4.5 | C121: 0.7985162188 | D121: 0.689200895 | E121: 0.310799105 | F121: 0.004475414873 | G121: =C121*D121*0.25 -> 0.1375845232 | H121: 0.002144214817 | I121: 0 | J121: 0
B122: 4.55 | C122: 0.7965224215 | D122: 0.6847543543 | E122: 0.3152456457 | F122: 0.004446540688 | H122: 0.002125061614 | I122: 0.05 | J122: 0.0002223270344
B123: 4.6 | C123: 0.7945336025 | D123: 0.6803365015 | E123: 0.3196634985 | F123: 0.004417852791 | H123: 0.002106079496 | I123: 0.1 | J123: 0.0004417852791
B124: 4.65 | C124: 0.7925497493 | D124: 0.6759471515 | E124: 0.3240528485 | F124: 0.004389349981 | H124: 0.002087266936 | I124: 0.15 | J124: 0.0006584024971
B125: 4.7 | C125: 0.7905708496 | D125: 0.6715861205 | E125: 0.3284138795 | F125: 0.004361031063 | H125: 0.00206862242 | I125: 0.2 | J125: 0.0008722062127
B126: 4.75 | C126: 0.788596891 | D126: 0.6672532256 | E126: 0.3327467744 | F126: 0.004332894852 | G126: =C126*D126*0.25 -> 0.1315484548 | H126: 0.002050144446 | I126: 0 | J126: 0
B127: 4.8 | C127: =EXP(-IRate*B127) -> 0.7866278611 | D127: 0.6629482855 | E127: 0.3370517145 | F127: 0.004304940168 | H127: 0.002031831526 | I127: 0.05 | J127: 0.0002152470084
B128: 4.85 | C128: =EXP(-IRate*B128) -> 0.7846637476 | D128: 0.6586711196 | E128: 0.3413288804 | F128: 0.00427716584 | H128: 0.002013682186 | I128: 0.1 | J128: 0.000427716584
B129: 4.9 | C129: =EXP(-IRate*B129) -> 0.7827045382 | D129: 0.6544215489 | E129: 0.3455784511 | F129: 0.004249570705 | H129: 0.001995694966 | I129: 0.15 | J129: 0.0006374356057
B130: 4.95 | C130: =EXP(-IRate*B130) -> 0.7807502208 | D130: 0.6501993953 | E130: 0.3498006047 | F130: 0.004222153606 | H130: 0.001977868416 | I130: 0.2 | J130: 0.0008444307212
B131: 5 | C131: =EXP(-IRate*B131) -> 0.7788007831 | D131: 0.6460044819 | E131: =1-D131 -> 0.3539955181 | F131: 0.004194913395 | G131: =C131*D131*0.25 -> 0.1257771991 | H131: 0.001960201102 | I131: 0.25 | J131: 0.001048728349

Sheet Spreadsheet12.2
B9: Credit Curve | G9: Default probability
B10: Recovery | C10: 0.4 | F10: Credit spread | G10: Actual | H10: Flat curve
B11: 1Y | C11: 150 | E11: 0 | F11: =CubicSpline($B$34:$B$38,$C$11:$C$15,E11) -> 140.0968308
B12: 3Y | C12: 175 | E12: =E11+0.05 -> 0.05 | F12: =CubicSpline($B$34:$B$38,$C$11:$C$15,E12) -> 140.6721665 | G12: =1-EXP(-E12*F12/(1-RecoveryRate)/10000) -> 0.001171581216 | H12: =1-EXP(-E12*fiveyrspread/(1-RecoveryRate)/10000) -> 0.001831653804
B13: 5Y | C13: 220 | E13: =E12+0.05 -> 0.1 | F13: =CubicSpline($B$34:$B$38,$C$11:$C$15,E13) -> 141.2351671 | G13: 0.002351151156 | H13: 0.003659952653
B14: 7Y | C14: 240 | E14: =E13+0.05 -> 0.15 | F14: 141.786482 | G14: 0.003538387153 | H14: 0.005484902691
B15: 10Y | C15: 250 | E15: =E14+0.05 -> 0.2 | F15: 142.3267604 | G15: 0.004732989287 | H15: 0.007306510053
E16: =E14+0.05 -> 0.2 | F16: 142.3267604 | G16: 0.004732989287 | H16: 0.007306510053
E17: =E15+0.05 -> 0.25 | F17: 142.8566515 | G17: 0.005934680279 | H17: 0.00912478086
E18: =E16+0.05 -> 0.25 | F18: 142.8566515 | G18: 0.005934680279 | H18: 0.00912478086
E19: =E18+0.05 -> 0.3 | F19: 143.3768045 | G19: 0.007143205382 | H19: 0.01093972122
E20: 0.35 | F20: 143.8878685 | G20: 0.008358332266 | H20: 0.01275133725
E21: 0.4 | F21: 144.3904929 | G21: 0.009579850905 | H21: 0.01455963502
E22: 0.45 | F22: 144.8853267 | G22: 0.01080757345 | H22: 0.01636462061
E23: 0.5 | F23: 145.3730193 | G23: 0.01204133413 | H23: 0.01816630009
E24: 0.55 | F24: 145.8542198 | G24: 0.01328098909 | H24: 0.01996467953
E25: 0.6 | F25: 146.3295774 | G25: 0.01452641632 | H25: 0.02175976495
E26: 0.65 | F26: 146.7997414 | G26: 0.01577751546 | H26: 0.0235515624
E27: 0.7 | F27: 147.2653609 | G27: 0.01703420774 | H27: 0.02534007789
E28: 0.75 | F28: 147.7270851 | G28: 0.01829643579 | H28: 0.02712531745
E29: 0.8 | F29: 148.1855633 | G29: 0.01956416355 | H29: 0.02890728706
E30: 0.85 | F30: 148.6414447 | G30: 0.02083737611 | H30: 0.03068599272
E31: 0.9 | F31: 149.0953785 | G31: 0.02211607959 | H31: 0.03246144041
E32: 0.95 | F32: 149.5480139 | G32: 0.02340030096 | H32: 0.03423363609
B33: 0 | C33: =fiveyrspread -> 220 | E33: 1 | F33: 150 | G33: 0.02469008797 | H33: 0.03600258573
B34: =LEFT(B11,LEN(B11)-1)*1 -> 1 | C34: 220 | E34: 1.05 | F34: 150.4519861 | G34: 0.02598550895 | H34: 0.03776829526
B35: =LEFT(B12,LEN(B12)-1)*1 -> 3 | C35: 220 | E35: 1.1 | F35: 150.9046215 | G35: 0.02728665268 | H35: 0.03953077062
B36: =LEFT(B13,LEN(B13)-1)*1 -> 5 | C36: 220 | E36: 1.15 | F36: 151.3585553 | G36: 0.02859362826 | H36: 0.04129001774
B37: =LEFT(B14,LEN(B14)-1)*1 -> 7 | C37: 220 | E37: 1.2 | F37: 151.8144367 | G37: 0.02990656495 | H37: 0.04304604253
B38: =LEFT(B15,LEN(B15)-1)*1 -> 10 | C38: 220 | E38: 1.25 | F38: 152.2729149 | G38: 0.03122561201 | H38: 0.04479885088
E39: 1.3 | F39: 152.7346391 | G39: 0.03255093857 | H39: 0.0465484487
E40: 1.35 | F40: 153.2002586 | G40: 0.03388273345 | H40: 0.04829484186
E41: 1.4 | F41: 153.6704226 | G41: 0.03522120504 | H41: 0.05003803624
E42: 1.45 | F42: 154.1457802 | G42: 0.0365665811 | H42: 0.05177803768
E43: 1.5 | F43: 154.6269807 | G43: 0.03791910862 | H43: 0.05351485205
E44: 1.55 | F44: 155.1146733 | G44: 0.03927905366 | H44: 0.05524848517
E45: 1.6 | F45: 155.6095071 | G45: 0.04064670117 | H45: 0.05697894287
E46: 1.65 | F46: 156.1121315 | G46: 0.04202235481 | H46: 0.05870623098
E47: 1.7 | F47: 156.6231955 | G47: 0.04340633682 | H47: 0.06043035529
E48: 1.75 | F48: 157.1433485 | G48: 0.04479898777 | H48: 0.06215132161
E49: 1.8 | F49: 157.6732396 | G49: 0.04620066647 | H49: 0.06386913571
E50: 1.85 | F50: 158.213518 | G50: 0.04761174969 | H50: 0.06558380337
E51: 1.9 | F51: 158.7648329 | G51: 0.04903263203 | H51: 0.06729533035
E52: 1.95 | F52: 159.3278335 | G52: 0.05046372572 | H52: 0.06900372241
E53: 2 | F53: 159.9031692 | G53: 0.0519054604 | H53: 0.07070898528
E54: 2.05 | F54: 160.4914889 | G54: 0.05335828293 | H54: 0.0724111247
E55: 2.1 | F55: 161.093442 | G55: 0.05482265716 | H55: 0.07411014639
E56: 2.15 | F56: 161.7096777 | G56: 0.05629906376 | H56: 0.07580605607
E57: 2.2 | F57: 162.3408452 | G57: 0.05778799993 | H57: 0.07749885942
E58: 2.25 | F58: 162.9875937 | G58: 0.05928997926 | H58: 0.07918856214
E59: 2.3 | F59: 163.6505723 | G59: 0.06080553139 | H59: 0.08087516992
E60: 2.35 | F60: 164.3304304 | G60: 0.06233520185 | H60: 0.08255868841
E61: 2.4 | F61: 165.027817 | G61: 0.0638795518 | H61: 0.08423912328
E62: 2.45 | F62: 165.7433815 | G62: 0.06543915774 | H62: 0.08591648017
E63: 2.5 | F63: 166.477773 | G63: 0.06701461124 | H63: 0.08759076473
E64: 2.55 | F64: 167.2316407 | G64: 0.06860651874 | H64: 0.08926198257
E65: 2.6 | F65: 168.0056339 | G65: 0.07021550116 | H65: 0.09093013933
E66: 2.65 | F66: 168.8004017 | G66: 0.0718421937 | H66: 0.0925952406
E67: 2.7 | F67: 169.6165934 | G67: 0.0734872455 | H67: 0.09425729198
E68: 2.75 | F68: 170.4548581 | G68: 0.07515131932 | H68: 0.09591629905
E69: 2.8 | F69: 171.3158451 | G69: 0.07683509124 | H69: 0.0975722674
E70: 2.85 | F70: 172.2002036 | G70: 0.07853925031 | H70: 0.09922520259
E71: 2.9 | F71: 173.1085828 | G71: 0.08026449822 | H71: 0.1008751102
E72: 2.95 | F72: 174.0416318 | G72: 0.08201154894 | H72: 0.1025219957
E73: 3 | F73: 175 | G73: 0.08378112835 | H73: 0.1041658647
E74: 3.05 | F74: 175.9840001 | G74: 0.0855738175 | H74: 0.1058067227
E75: 3.1 | F75: 176.9925967 | G75: 0.08738956388 | H75: 0.1074445752
E76: 3.15 | F76: 178.0244203 | G76: =1-EXP(-E76*F76/(1-RecoveryRate)/10000) -> 0.08922812129 | H76: =1-EXP(-E76*fiveyrspread/(1-RecoveryRate)/10000) -> 0.1090794278
E77: 3.2 | F77: =CubicSpline($B$34:$B$38,$C$11:$C$15,E77) -> 179.0780984 | G77: 0.09108919974 | H77: 0.1107112858
E78: 3.25 | F78: 180.1522613 | G78: 0.09297246849 | H78: 0.1123401549
E79: 3.3 | F79: 181.2455372 | G79: 0.09487755444 | H79: 0.1139660404
E80: 3.35 | F80: 182.3565548 | G80: 0.09680404356 | H80: 0.1155889479
E81: 3.4 | F81: 183.4839438 | G81: 0.09875148205 | H81: 0.1172088827
E82: =E81+0.05 -> 3.45 | F82: 184.6263325 | G82: 0.1007193753 | H82: 0.1188258505
E83: 3.5 | F83: 185.7823504 | G83: 0.1027071901 | H83: 0.1204398564
E84: 3.55 | F84: 186.9506339 | G84: 0.1047143579 | H84: 0.1220509061
E85: 3.6 | F85: 188.1297888 | G85: 0.1067402556 | H85: 0.1236590049
E86: 3.65 | F86: 189.3184673 | G86: 0.1087842474 | H86: 0.1252641582
E87: 3.7 | F87: 190.5152829 | G87: 0.1108456393 | H87: 0.1268663715
E88: 3.75 | F88: 191.7188876 | G88: 0.1129237219 | H88: 0.12846565
E89: 3.8 | F89: 192.927895 | G89: 0.1150177289 | H89: 0.1300619992
E90: 3.85 | F90: 194.1409189 | G90: 0.1171268585 | H90: 0.1316554245
E91: 3.9 | F91: 195.356611 | G91: 0.1192502954 | H91: 0.1332459311
E92: 3.95 | F92: 196.5735851 | G92: 0.1213871689 | H92: 0.1348335245
E93: 4 | F93: 197.790493 | G93: 0.1235365967 | H93: 0.13641821
E94: 4.05 | F94: 199.0059409 | G94: 0.125697637 | H94: 0.1379999928
E95: 4.1 | F95: 200.2185652 | G95: 0.1278693336 | H95: 0.1395788784
E96: 4.15 | F96: 201.4269949 | G96: 0.1300506941 | H96: 0.141154872
E97: 4.2 | F97: 202.6298592 | G97: 0.1322406952 | H97: 0.142727979
E98: 4.25 | F98: 203.8257868 | G98: 0.134438283 | H98: 0.1442982045
E99: 4.3 | F99: 205.0134067 | G99: 0.1366423737 | H99: 0.145865554
E100: 4.35 | F100: 206.1913442 | G100: 0.1388518522 | H100: 0.1474300326
E101: 4.4 | F101: 207.3582432 | G101: 0.1410655862 | H101: 0.1489916456
E102: 4.45 | F102: 208.5127102 | G102: 0.1432823918 | H102: 0.1505503983
E103: 4.5 | F103: 209.6533891 | G103: 0.1455010813 | H103: 0.1521062959
E104: 4.55 | F104: 210.7789052 | G104: 0.147720428 | H104: 0.1536593436
E105: 4.6 | F105: 211.8878873 | G105: 0.149939181 | H105: 0.1552095467
E106: 4.65 | F106: 212.9789646 | G106: 0.1521560637 | H106: 0.1567569104
E107: 4.7 | F107: 214.0507677 | G107: 0.1543697751 | H107: 0.1583014398
E108: 4.75 | F108: 215.1019201 | G108: 0.1565789843 | H108: 0.1598431402
E109: 4.8 | F109: 216.1310563 | G109: 0.1587823429 | H109: 0.1613820167
E110: 4.85 | F110: 217.1368044 | G110: 0.1609784747 | H110: 0.1629180745
E111: 4.9 | F111: 218.1177905 | G111: 0.1631659777 | H111: 0.1644513188
E112: 4.95 | F112: 219.0726463 | G112: 0.1653434309 | H112: 0.1659817547
E113: 5 | F113: 220 | G113: 0.1675093874 | H113: 0.1675093874
E114: 5.05 | F114: 220.8988113 | G114: 0.1696626094 | H114: 0.169034222
E115: 5.1 | F115: 221.7693663 | G115: 0.1718027774 | H115: 0.1705562636
E116: 5.15 | F116: 222.6122797 | G116: 0.1739298156 | H116: 0.1720755174
E117: 5.2 | F117: 223.4281692 | G117: 0.1760436689 | H117: 0.1735919884
E118: 5.25 | F118: 224.2176496 | G118: 0.1781442972 | H118: 0.1751056818
E119: 5.3 | F119: 224.9813377 | G119: 0.1802316798 | H119: 0.1766166026
E120: 5.35 | F120: 225.7198504 | G120: 0.1823058128 | H120: 0.1781247559
E121: 5.4 | F121: 226.4338026 | G121: 0.1843667082 | H121: 0.1796301469
E122: 5.45 | F122: 227.1238117 | G122: 0.1864143963 | H122: 0.1811327804
E123: 5.5 | F123: 227.7904929 | G123: 0.1884489224 | H123: 0.1826326617
E124: 5.55 | F124: 228.4344628 | G124: 0.1904703493 | H124: 0.1841297957
E125: 5.6 | F125: 229.056338 | G125: 0.1924787556 | H125: 0.1856241874
E126: 5.65 | F126: 229.656734 | G126: 0.1944742355 | H126: 0.187115842
E127: 5.7 | F127: 230.2362675 | G127: 0.1964568994 | H127: 0.1886047644
E128: 5.75 | F128: 230.7955545 | G128: 0.1984268727 | H128: 0.1900909595
E129: 5.8 | F129: 231.3352111 | G129: 0.2003842966 | H129: 0.1915744325
E130: 5.85 | F130: 231.8558538 | G130: 0.2023293272 | H130: 0.1930551883
E131: 5.9 | F131: 232.3580985 | G131: 0.2042621356 | H131: 0.1945332318
E132: 5.95 | F132: 232.8425538 | G132: 0.2061829018 | H132: 0.1960085681
E133: 6 | F133: 233.309859 | G133: 0.2080918444 | H133: 0.197481202
E134: 6.05 | F134: 233.7606073 | G134: 0.2099891602 | H134: 0.1989511386
E135: 6.1 | F135: 234.1954224 | G135: 0.2118750845 | H135: 0.2004183828
E136: 6.15 | F136: 234.6149207 | G136: 0.2137498606 | H136: 0.2018829396
E137: 6.2 | F137: 235.0197182 | G137: 0.2156137458 | H137: 0.2033448137
E138: 6.25 | F138: 235.4104312 | G138: 0.2174670112 | H138: 0.2048040102
E139: 6.3 | F139: 235.7876759 | G139: 0.2193099413 | H139: 0.206260534
E140: 6.35 | F140: 236.1520685 | G140: =1-EXP(-E140*F140/(1-RecoveryRate)/10000) -> 0.2211428343 | H140: =1-EXP(-E140*fiveyrspread/(1-RecoveryRate)/10000) -> 0.2077143899
E141: 6.4 | F141: =CubicSpline($B$34:$B$38,$C$11:$C$15,E141) -> 236.5042253 | G141: 0.2229660017 | H141: 0.2091655828
E142: 6.45 | F142: 236.8447623 | G142: 0.2247797678 | H142: 0.2106141177
E143: 6.5 | F143: 237.1742957 | G143: 0.2265844704 | H143: 0.2120599994
E144: 6.55 | F144: 237.4934418 | G144: 0.2283804598 | H144: 0.2135032327
E145: 6.6 | F145: 237.8028169 | G145: 0.2301680991 | H145: 0.2149438224
E146: =E145+0.05 -> 6.65 | F146: 238.1030369 | G146: 0.231947764 | H146: 0.2163817736
E147: 6.7 | F147: 238.3947183 | G147: 0.2337198426 | H147: 0.2178170909
E148: 6.75 | F148: 238.6784771 | G148: 0.2354847351 | H148: 0.2192497792
E149: 6.8 | F149: 238.9549296 | G149: 0.2372428541 | H149: 0.2206798433
E150: 6.85 | F150: 239.2246919 | G150: 0.2389946239 | H150: 0.222107288
E151: 6.9 | F151: 239.4883803 | G151: 0.2407404807 | H151: 0.2235321182
E152: 6.95 | F152: 239.7466109 | G152: 0.2424808724 | H152: 0.2249543385
E153: 7 | F153: 240 | G153: 0.2442162585 | H153: 0.2263739539
E154: 7.05 | F154: 240.2490727 | G154: 0.2459470292 | H154: 0.227790969
E155: 7.1 | F155: 240.4939907 | G155: 0.2476732607 | H155: 0.2292053886
E156: 7.15 | F156: 240.734824 | G156: 0.2493949507 | H156: 0.2306172174
E157: 7.2 | F157: 240.9716432 | G157: 0.2511120992 | H157: 0.2320264603
E158: 7.25 | F158: 241.2045187 | G158: 0.252824708 | H158: 0.233433122
E159: 7.3 | F159: 241.4335212 | G159: 0.2545327809 | H159: 0.2348372071
E160: 7.35 | F160: 241.6587206 | G160: 0.2562363228 | H160: 0.2362387205
E161: 7.4 | F161: 241.8801877 | G161: 0.2579353411 | H161: 0.2376376667
E162: 7.45 | F162: 242.0979928 | G162: 0.2596298446 | H162: 0.2390340506
E163: 7.5 | F163: 242.3122066 | G163: 0.261319844 | H163: 0.2404278768
E164: 7.55 | F164: 242.522899 | G164: 0.2630053514 | H164: 0.2418191499
E165: 7.6 | F165: 242.7301408 | G165: 0.264686381 | H165: 0.2432078748
E166: 7.65 | F166: 242.9340022 | G166: 0.2663629485 | H166: 0.244594056
E167: 7.7 | F167: 243.134554 | G167: 0.2680350712 | H167: 0.2459776981
E168: 7.75 | F168: 243.3318661 | G168: 0.2697027679 | H168: 0.2473588059
E169: 7.8 | F169: 243.5260093 | G169: 0.2713660593 | H169: 0.2487373841
E170: 7.85 | F170: 243.717054 | G170: 0.2730249678 | H170: 0.2501134371
E171: 7.9 | F171: 243.9050704 | G171: 0.2746795168 | H171: 0.2514869697
E172: 7.95 | F172: 244.090129 | G172: 0.2763297318 | H172: 0.2528579864
E173: 8 | F173: 244.2723004 | G173: 0.2779756396 | H173: 0.2542264919
E174: 8.05 | F174: 244.4516549 | G174: 0.2796172687 | H174: 0.2555924908
E175: 8.1 | F175: 244.6282628 | G175: 0.2812546488 | H175: 0.2569559876
E176: 8.15 | F176: 244.8021948 | G176: 0.2828878114 | H176: 0.258316987
E177: 8.2 | F177: 244.9735211 | G177: 0.2845167893 | H177: 0.2596754935
E178: 8.25 | F178: 245.1423121 | G178: 0.2861416168 | H178: 0.2610315117
E179: 8.3 | F179: 245.3086384 | G179: 0.2877623296 | H179: 0.2623850462
E180: 8.35 | F180: 245.4725704 | G180: 0.2893789648 | H180: 0.2637361014
E181: 8.4 | F181: 245.6341783 | G181: 0.2909915609 | H181: 0.265084682
E182: 8.45 | F182: 245.7935328 | G182: 0.2926001578 | H182: 0.2664307924
E183: 8.5 | F183: 245.9507042 | G183: 0.2942047969 | H183: 0.2677744373
E184: 8.55 | F184: 246.1057628 | G184: 0.2958055207 | H184: 0.269115621
E185: 8.6 | F185: 246.2587793 | G185: 0.2974023732 | H185: 0.2704543481
E186: 8.65 | F186: 246.4098239 | G186: 0.2989953996 | H186: 0.2717906232
E187: 8.7 | F187: 246.5589671 | G187: 0.3005846465 | H187: 0.2731244507
E188: 8.75 | F188: 246.7062793 | G188: 0.3021701617 | H188: 0.2744558351
E189: 8.8 | F189: 246.8518309 | G189: 0.3037519943 | H189: 0.2757847808
E190: 8.85 | F190: 246.9956924 | G190: 0.3053301945 | H190: 0.2771112924
E191: 8.9 | F191: 247.1379342 | G191: 0.3069048141 | H191: 0.2784353742
E192: 8.95 | F192: 247.2786267 | G192: 0.3084759056 | H192: 0.2797570308
E193: 9 | F193: 247.4178403 | G193: 0.3100435232 | H193: 0.2810762666
E194: 9.05 | F194: 247.5556455 | G194: 0.3116077219 | H194: 0.282393086
E195: 9.1 | F195: 247.6921126 | G195: 0.3131685582 | H195: 0.2837074934
E196: 9.15 | F196: 247.8273122 | G196: 0.3147260893 | H196: 0.2850194933
E197: 9.2 | F197: 247.9613145 | G197: 0.316280374 | H197: 0.2863290901
E198: 9.25 | F198: 248.0941901 | G198: 0.3178314719 | H198: 0.2876362881
E199: 9.3 | F199: 248.2260094 | G199: 0.3193794439 | H199: 0.2889410918
E200: 9.35 | F200: 248.3568427 | G200: 0.3209243519 | H200: 0.2902435055
E201: 9.4 | F201: 248.4867605 | G201: 0.3224662587 | H201: 0.2915435337
E202: 9.45 | F202: 248.6158333 | G202: 0.3240052285 | H202: 0.2928411807
E203: 9.5 | F203: 248.7441314 | G203: 0.3255413263 | H203: 0.2941364509
E204: 9.55 | F204: 248.8717253 | G204: =1-EXP(-E204*F204/(1-RecoveryRate)/10000) -> 0.3270746182 | H204: =1-EXP(-E204*fiveyrspread/(1-RecoveryRate)/10000) -> 0.2954293485
E205: 9.6 | F205: =CubicSpline($B$34:$B$38,$C$11:$C$15,E205) -> 248.9986854 | G205: 0.3286051713 | H205: 0.296719878
E206: 9.65 | F206: 249.1250821 | G206: 0.3301330536 | H206: 0.2980080437
E207: 9.7 | F207: 249.2509859 | G207: 0.3316583343 | H207: 0.29929385
E208: 9.75 | F208: 249.3764671 | G208: 0.3331810833 | H208: 0.3005773011
... 5 more rows
